bitfinex/quotes_ETHUSD_20241023
["timestamp","ask_amount","ask_price","bid_price","bid_amount"]
[1729714540345,17.34092585,2510.9,2510.4,3.9834]
[1729714540913,13.35828585,2510.9,2510.4,3.98334]
[1729714541237,13.35828585,2510.9,2510.4,4.896964]
[1729714541610,13.35828585,2510.9,2510.5,4.06282617]
[1729714541953,13.35828585,2510.9,2510.4,4.896964]
[1729714542257,13.35828585,2510.9,2510.5,3.98325]
[1729714542751,13.35828585,2510.9,2510.4,4.896964]
[1729714542911,13.35828585,2510.9,2510.5,0.4896964]
[1729714543910,13.35828585,2510.9,2510.4,4.896974]
[1729714545112,13.35828585,2510.9,2510.5,0.07965623]
[1729714545444,13.35828585,2510.9,2510.5,4.06290623]
[1729714545655,13.35828585,2510.9,2510.4,4.896974]
[1729714545855,17.34101585,2510.9,2510.4,0.913624]
[1729714546360,17.34101585,2510.9,2510.5,0.4897194]
[1729714548145,3.98298,2510.7,2510.2,5.1529]
[1729714548351,3.9828,2510.8,2510.2,9.13657]
[1729714549241,3.9828,2510.8,2510.2,13.12023]
[1729714549665,3.9828,2510.8,2510.3,3.98358]
[1729714549963,3.9828,2510.8,2510.3,0.07966231]
[1729714550373,3.98313,2510.6,2510.2,4.6029]
[1729714550533,5.59687,2510.7,2510.2,6.98371]
[1729714550730,1.6138,2510.7,2510.3,3.98349]
[1729714550955,1.6138,2510.7,2510.3,5.5394576]
[1729714551267,1.6138,2510.7,2510.4,3.98342]
[1729714551945,0.16470402,2510.6,2510.4,3.98342]
[1729714552645,0.16470402,2510.6,2510.3,1.47630529]
[1729714552849,0.16470402,2510.6,2510.2,6.98361]
[1729714553034,0.16470402,2510.6,2510.3,3.98349]
[1729714553369,0.16470402,2510.6,2510.3,4.06315233]
[1729714553565,0.16470402,2510.6,2510.4,3.9834]
[1729714553936,0.16470402,2510.6,2510.3,3.98349]
[1729714554968,0.16470402,2510.6,2510.0,1.53]
[1729714554969,1.6138,2510.5,2509.9,3.98412]
[1729714555140,1.6138,2510.1,2509.6,5.51469]
[1729714555471,0.16470402,2510.0,2509.6,1.53]
[1729714555679,0.16470402,2510.0,2509.6,6.066156]
[1729714555907,0.16470402,2510.0,2509.6,10.050776]
[1729714556107,0.16470402,2510.0,2509.8,3.98423]
[1729714556402,0.16470402,2510.0,2509.7,3.98453]
[1729714556604,14.87208585,2510.3,2509.8,3.98425]
[1729714556814,14.87208585,2510.3,2509.9,0.07967985]
[1729714556972,14.87208585,2510.3,2509.9,3.98415]
[1729714557500,14.87208585,2510.3,2509.9,3.98414]
[1729714557806,14.87208585,2510.3,2509.9,7.96827]
[1729714558215,14.87208585,2510.3,2509.9,3.98413]
[1729714558502,14.87208585,2510.3,2509.9,7.96828]
[1729714559112,14.87208585,2510.3,2509.8,4.53435]
[1729714560015,1.5138,2510.3,2509.9,3.9842]
[1729714560321,5.49739,2510.3,2509.8,4.5343]
[1729714562627,5.49739,2510.3,2509.8,8.5186]
[1729714562935,5.49739,2510.3,2509.8,4.5343]
[1729714563082,1.5138,2510.3,2509.8,4.53427]
[1729714563282,1.5138,2510.3,2509.8,3.98424]
[1729714563928,1.5138,2510.3,2509.9,3.98415]
[1729714564095,1.5138,2510.3,2510.0,3.98404]
[1729714564298,13.35828585,2510.4,2510.0,1.6404]
[1729714564500,13.35828585,2510.4,2510.1,7.69994643]
[1729714564724,13.35828585,2510.4,2510.2,3.98374]
[1729714565132,13.35828585,2510.4,2510.3,3.98358]
[1729714565806,3.98311,2510.6,2510.2,0.562414]
[1729714565991,14.91938585,2510.7,2510.2,0.562414]
[1729714566332,22.88541585,2510.7,2510.2,0.562414]
[1729714566718,18.90236585,2510.7,2510.2,0.562414]
[1729714566904,0.16445335,2510.6,2510.2,0.562414]
[1729714567837,0.16445335,2510.6,2510.3,3.98357]
[1729714568531,4.14758335,2510.6,2510.2,0.562414]
[1729714568733,0.16445335,2510.6,2510.2,0.562414]
[1729714569415,0.16445335,2510.6,2510.2,4.546074]
[1729714569606,0.16445335,2510.6,2510.2,4.546064]
[1729714570534,0.16445335,2510.6,2510.2,8.529734]
[1729714570739,0.16445335,2510.6,2510.3,4.9162171]
[1729714570898,0.16445335,2510.6,2510.4,1.5647]
[1729714571247,0.16445335,2510.6,2510.5,4.61293371]
[1729714571395,0.16445335,2510.6,2510.5,4.53327]
[1729714571738,0.16484146,2510.6,2510.5,4.53327]
[1729714571902,0.16484146,2510.6,2510.5,5.99832198]
[1729714572103,5.57483,2511.1,2510.6,3.98307]
[1729714572430,5.57483,2511.1,2510.6,5.81238856]
[1729714572638,1.5925,2511.1,2510.9,1.82931856]
[1729714573093,5.59728,2511.2,2510.9,1.82931856]
[1729714573292,18.95556585,2511.2,2510.8,1.82931856]
[1729714574445,18.95556585,2511.2,2510.7,5.56958264]
[1729714574639,18.95556585,2511.2,2510.7,6.95137643]
[1729714575508,18.95556585,2511.2,2510.7,2.88879379]
[1729714575708,18.95556585,2511.2,2510.7,6.87165379]
[1729714576416,18.95556585,2511.2,2510.8,3.98279]
[1729714577233,18.95556585,2511.2,2510.7,6.87160379]
[1729714578334,22.93782585,2511.2,2510.7,6.87160379]
[1729714578503,18.86394853,2511.2,2510.7,6.87160379]
[1729714579404,18.86394853,2511.2,2510.7,5.36460379]
[1729714579945,1.5818,2510.9,2510.6,3.0]
[1729714580441,1.5818,2510.9,2510.6,6.98311]
[1729714580746,5.56448,2510.9,2510.3,1.6115]
[1729714580905,1.5818,2510.7,2510.3,3.9835]
[1729714581254,1.5818,2510.7,2510.4,3.98342]
[1729714581546,13.35828585,2510.8,2510.5,1.5644]
[1729714581715,13.35828585,2510.8,2510.6,3.98301]
[1729714582037,0.16494655,2510.7,2510.6,3.98301]
[1729714582412,13.35828585,2510.8,2510.6,3.98301]
[1729714582613,0.16494655,2510.7,2510.6,3.98301]
[1729714582962,13.35828585,2510.8,2510.7,3.98295]
[1729714583951,13.35828585,2510.8,2510.6,5.486073]
[1729714584453,13.35828585,2510.8,2510.6,9.469093]
[1729714584757,13.35828585,2510.8,2510.7,3.98295]
[1729714586526,1.573,2511.0,2510.7,3.98295]
[1729714586925,1.573,2511.0,2510.8,3.98277]
[1729714587138,1.573,2511.0,2510.8,3.98278]
[1729714588038,1.573,2511.0,2510.7,3.9828]
[1729714588950,1.573,2511.0,2510.8,3.98272]
[1729714589260,1.573,2511.0,2510.7,3.9828]
[1729714589631,1.573,2511.0,2510.6,1.503063]
[1729714589835,1.573,2511.0,2510.7,3.98295]
[1729714590860,1.573,2511.0,2510.8,3.98275]
[1729714592147,1.573,2511.0,2510.6,3.98311]
[1729714593436,1.573,2511.0,2510.7,3.9829]
[1729714595438,1.573,2511.0,2510.6,1.82931284]
[1729714595639,1.573,2511.0,2510.6,3.9831]
[1729714596041,5.55549,2511.0,2510.6,3.9831]
[1729714596362,1.573,2511.0,2510.7,3.98293]
[1729714596966,0.16535068,2510.9,2510.7,3.98293]
[1729714597372,0.16535068,2510.9,2510.8,3.98279]
[1729714597573,0.16535068,2510.9,2510.8,5.81210284]
[1729714598494,13.98151284,2511.3,2511.2,3.98215]
[1729714598787,1.5741,2511.6,2511.4,3.98182]
[1729714598986,1.5741,2511.6,2511.5,1.82931284]
[1729714599516,3.98129,2511.8,2511.4,1.82931284]
[1729714599781,18.91345585,2511.9,2511.5,3.98166]
[1729714599980,13.35828585,2511.8,2511.5,3.98166]
[1729714600352,13.35828585,2511.8,2511.4,5.81099284]
[1729714600554,13.35828585,2511.8,2511.5,1.82931284]
[1729714602789,13.35828585,2511.8,2511.4,5.81099284]
[1729714602976,13.35828585,2511.8,2511.4,6.95684616]
[1729714603286,3.98143,2511.7,2511.4,1.14585332]
[1729714603489,17.33957585,2511.8,2511.3,5.81120284]
[1729714604379,17.33957585,2511.8,2511.3,1.82931284]
[1729714605189,17.33957585,2511.8,2511.3,5.81123284]
[1729714605390,17.33957585,2511.8,2511.4,1.13791428]
[1729714606286,13.35828585,2511.8,2511.4,1.13791428]
[1729714606487,17.33951585,2511.8,2511.4,1.13791428]
[1729714608177,17.33951585,2511.8,2511.4,2.96722712]
[1729714610096,21.32087585,2511.8,2511.4,2.96722712]
[1729714610264,17.33951585,2511.8,2511.4,2.96722712]
[1729714610479,17.33951585,2511.8,2511.3,5.81122284]
[1729714610796,17.33951585,2511.8,2511.4,1.82931284]
[1729714612212,0.16581131,2511.7,2511.4,1.82931284]
[1729714612687,0.16581131,2511.6,2511.4,1.82931284]
[1729714612868,17.33951585,2511.8,2511.4,1.82931284]
[1729714613067,0.16619911,2511.7,2511.4,1.82931284]
[1729714613301,0.16619911,2511.7,2511.4,2.56902512]
[1729714613504,17.33951585,2511.8,2511.4,2.56902512]
[1729714613667,0.16619911,2511.7,2511.4,1.82931284]
[1729714613873,17.33951585,2511.8,2511.4,1.82931284]
[1729714614182,0.16619911,2511.7,2511.3,5.81122284]
[1729714614593,17.33951585,2511.8,2511.3,5.81122284]
[1729714614791,0.16619911,2511.6,2511.3,5.81122284]
[1729714615107,0.16619911,2511.5,2511.3,6.94915212]
[1729714615309,17.33951585,2511.8,2511.3,6.94915212]
[1729714615472,0.16619911,2511.7,2511.4,1.82931284]
[1729714615677,17.33951585,2511.8,2511.5,1.82931284]
[1729714615678,13.35828585,2511.8,2511.5,1.82931284]
[1729714615953,0.16619911,2511.7,2511.5,1.82931284]
[1729714616128,13.35828585,2511.8,2511.5,2.9303631]
[1729714616419,0.16619911,2511.7,2511.6,3.35801284]
[1729714616594,0.16619911,2511.7,2511.6,7.33953284]
[1729714616780,13.35828585,2511.9,2511.6,5.51022]
[1729714617110,13.35828585,2511.9,2511.6,7.33953284]
[1729714617407,0.16619911,2511.8,2511.6,8.58175815]
[1729714617771,0.16619911,2511.8,2511.7,5.81067284]
[1729714619010,0.16619911,2511.8,2511.7,6.44029265]
[1729714619510,17.33871585,2512.3,2511.8,3.98105]
[1729714619732,17.33871585,2512.3,2511.9,1.82931284]
[1729714619904,3.98064,2512.2,2511.7,6.36064284]
[1729714620104,13.35828585,2512.3,2511.8,5.81044284]
[1729714620329,3.98059,2512.2,2511.8,1.82931284]
[1729714620827,3.98059,2512.2,2511.7,6.36061284]
[1729714621029,3.98059,2512.2,2511.7,7.67192366]
[1729714623535,3.98059,2512.2,2511.7,11.65319366]
[1729714623720,3.98059,2512.2,2511.7,7.67189366]
[1729714623924,1.6508,2512.1,2511.7,1.82931284]
[1729714624436,3.48011284,2512.0,2511.4,1.643]
[1729714624734,1.6508,2512.2,2511.6,3.98144]
[1729714624908,5.63145,2512.2,2511.7,3.9813]
[1729714625108,18.98973585,2512.2,2511.7,3.9813]
[1729714625419,15.00908585,2512.2,2511.7,3.9813]
[1729714625631,13.35828585,2512.2,2511.9,3.98095]
[1729714625797,13.35828585,2512.2,2512.1,1.82931284]
[1729714625998,14.94548585,2512.4,2512.1,1.82931284]
[1729714626738,0.16707145,2512.3,2512.1,1.82931284]
[1729714626913,4.14757145,2512.3,2511.9,1.82931284]
[1729714627108,4.14757145,2512.3,2511.8,7.88828353]
[1729714627317,8.12811145,2512.3,2511.8,6.26568353]
[1729714627625,8.12807145,2512.3,2511.8,6.26568353]
[1729714627794,4.14757145,2512.3,2511.8,6.26568353]
[1729714628218,8.12809145,2512.3,2511.8,6.26568353]
[1729714628417,8.12809145,2512.3,2511.9,0.62656835]
[1729714628418,4.14757145,2512.3,2511.9,0.62656835]
[1729714628804,1.5483,2512.0,2511.7,1.82931284]
[1729714629334,0.16716835,2511.9,2511.7,1.82931284]
[1729714630898,4.14821835,2511.9,2511.6,0.57040693]
[1729714631112,4.14821835,2511.9,2511.5,4.82931284]
[1729714631308,17.5065042,2511.9,2511.5,4.82931284]
[1729714631514,17.5065042,2511.9,2511.6,1.82931284]
[1729714631708,13.5254542,2511.9,2511.6,1.82931284]
[1729714631933,13.5254542,2511.9,2511.5,6.98167]
[1729714631934,13.5254542,2511.9,2511.7,1.82931284]
[1729714632249,13.5254542,2511.9,2511.8,3.46561284]
[1729714632408,13.5254542,2511.9,2511.8,7.44681284]
[1729714636939,0.16716835,2511.9,2511.8,7.44681284]
[1729714637123,5.55627,2512.3,2511.8,7.52642732]
[1729714637464,0.16711183,2512.2,2511.9,5.81031284]
[1729714637627,0.16711183,2512.2,2511.9,11.02218495]
[1729714637823,1.5758,2512.3,2511.9,11.02215495]
[1729714638165,1.5758,2512.3,2512.0,5.81019284]
[1729714638485,0.16720066,2512.2,2512.1,1.82931284]
[1729714639268,13.35828585,2512.4,2512.1,5.88963415]
[1729714639469,0.62307328,2512.6,2512.1,4.61034131]
[1729714639470,0.16720066,2512.2,2512.1,4.61034131]
[1729714639624,13.35828585,2512.7,2512.3,3.98035]
[1729714639819,13.35828585,2512.7,2512.3,4.05994919]
[1729714640171,13.35828585,2512.7,2512.3,5.58685]
[1729714640323,13.35828585,2512.7,2512.5,1.82931284]
[1729714641233,13.35828585,2512.7,2512.6,1.82931284]
[1729714641768,13.52548651,2512.7,2512.5,1.82931284]
[1729714646842,13.52548651,2512.7,2512.4,1.82931284]
[1729714647071,13.52548651,2512.7,2512.5,1.82931284]
[1729714648253,13.52548651,2512.7,2512.6,1.82931284]
[1729714648437,13.52548651,2512.7,2512.6,7.94405284]
[1729714648837,0.16720066,2512.7,2512.6,7.94405284]
[1729714649064,0.16720066,2512.7,2512.6,12.77336568]
[1729714649372,0.62282782,2513.2,2513.0,5.52865]
[1729714649587,0.62282782,2513.2,2513.1,5.80845284]
[1729714649950,0.1083914,2513.4,2513.1,5.80845284]
[1729714650147,0.1083914,2513.4,2513.3,1.82931284]
[1729714650352,0.1083914,2513.4,2513.1,8.82031266]
[1729714650578,0.1083914,2513.4,2513.1,1.13370828]
[1729714650773,0.1083914,2513.4,2513.1,5.11282828]
[1729714651198,0.1083914,2513.4,2513.1,1.13370828]
[1729714652391,0.1083914,2513.4,2513.2,1.06415183]
[1729714653365,0.1083914,2513.4,2513.2,5.04305183]
[1729714653595,0.1083914,2513.4,2513.2,5.12262249]
[1729714653803,0.1083914,2513.4,2513.2,1.14372249]
[1729714654093,0.1083914,2513.4,2513.3,9.87279438]
[1729714654401,0.1083914,2513.4,2513.3,11.37234407]
[1729714657167,0.27785953,2513.4,2513.3,11.37234407]
[1729714670410,0.27785953,2513.4,2513.3,1.49954969]
[1729714670712,0.27785953,2513.4,2513.2,4.06415183]
[1729714670913,0.27785953,2513.4,2512.8,1.5377]
[1729714671218,1.5038,2513.3,2512.9,7.68690438]
[1729714671383,0.27785953,2513.4,2513.3,3.97883]
[1729714671584,0.27785953,2513.4,2513.3,8.60869382]
[1729714672272,0.27785953,2513.4,2513.3,7.27618361]
[1729714673310,0.27785953,2513.4,2513.3,7.35574659]
[1729714673512,0.27785953,2513.4,2513.3,10.35574659]
[1729714673674,0.27785953,2513.4,2513.3,10.27618361]
[1729714673675,0.1083914,2513.4,2513.3,10.27618361]
[1729714676186,0.1083914,2513.4,2513.3,11.89488361]
[1729714682631,0.1083914,2513.4,2513.3,13.72983778]
[1729714682933,1.4e-06,2513.4,2513.3,13.73983778]
[1729714683937,1.62709766,2514.2,2514.1,3.97756]
[1729714684232,1.79725338,2514.2,2514.1,6.20027017]
[1729714685329,1.79725338,2514.2,2514.1,2.22271017]
[1729714685734,0.17015572,2514.2,2514.1,6.20027017]
[1729714685888,13.35828585,2514.6,2514.1,6.27981185]
[1729714686094,13.35828585,2514.7,2514.4,1.82495417]
[1729714686294,17.33491585,2514.7,2514.3,1.82495417]
[1729714686608,0.17029722,2514.6,2514.3,1.82495417]
[1729714686925,1.6407,2514.5,2514.3,1.82495417]
[1729714687347,0.17029722,2514.4,2514.3,1.82495417]
[1729714687851,0.17029722,2514.4,2514.3,5.80220417]
[1729714688146,0.17029722,2514.4,2514.3,7.19846331]
[1729714689351,0.17029722,2514.4,2514.3,7.27800161]
[1729714689648,0.17029722,2514.4,2514.3,7.74846331]
[1729714690012,14.98988585,2514.7,2514.5,3.97691]
[1729714690209,0.17029722,2514.6,2514.4,6.35201417]
[1729714690450,0.17029722,2514.6,2514.4,2.37495417]
[1729714690751,0.17029722,2514.6,2514.4,6.35201417]
[1729714692153,0.17029722,2514.6,2514.4,6.35195417]
[1729714692854,1.6316,2514.4,2513.8,3.97796]
[1729714693157,0.17099039,2514.3,2514.1,5.80243417]
[1729714693516,0.17099039,2514.3,2514.1,1.82495417]
[1729714693753,0.17099039,2514.3,2514.0,5.80264417]
[1729714694047,0.17099039,2514.3,2514.0,1.82495417]
[1729714694254,0.17099039,2514.3,2513.8,3.97793]
[1729714694456,5.60923,2514.1,2513.6,1.82495417]
[1729714694611,15.18324002,2514.1,2513.5,1.82495417]
[1729714694833,1.6316,2513.9,2513.7,1.82495417]
[1729714695038,1.6316,2513.9,2513.6,1.82495417]
[1729714695239,0.17072447,2513.8,2513.6,1.82495417]
[1729714695737,0.17072447,2513.8,2513.7,10.97524417]
[1729714695937,13.35828585,2514.0,2513.9,3.97788]
[1729714696249,13.52896198,2514.0,2513.9,5.80283417]
[1729714697141,0.17067613,2514.0,2513.9,9.35283417]
[1729714697340,1.5404,2514.4,2514.0,3.97761]
[1729714697539,0.17067613,2514.3,2514.0,5.80256417]
[1729714697849,0.17067613,2514.3,2514.0,1.82495417]
[1729714698041,4.14792613,2514.3,2513.9,1.82495417]
[1729714698238,1.5461,2514.2,2513.9,5.80280417]
[1729714698475,1.5461,2514.2,2513.9,1.82495417]
[1729714698672,1.5461,2514.2,2513.8,3.9779]
[1729714698978,0.17067613,2514.1,2513.9,5.80280417]
[1729714700173,0.17067613,2514.1,2514.0,1.82495417]
[1729714700543,0.17067613,2514.1,2513.9,5.80280417]
[1729714700882,0.17067613,2514.1,2514.0,5.80267417]
[1729714701376,0.17067613,2514.1,2513.9,5.80274417]
[1729714701677,0.17067613,2514.1,2513.9,5.80268417]
[1729714702483,0.17067613,2514.1,2514.0,5.80267417]
[1729714702636,0.17067613,2514.1,2514.0,6.35267417]
[1729714702841,1.5382,2514.4,2514.3,3.97725]
[1729714703077,3.97635,2514.9,2514.3,3.97725]
[1729714703078,14.89648585,2514.7,2514.4,3.97708]
[1729714703276,14.89648585,2514.7,2514.4,5.80203417]
[1729714703480,14.89648585,2514.7,2514.5,3.9769]
[1729714703775,1.5382,2514.7,2514.5,3.9769]
[1729714704075,1.5382,2514.7,2514.4,5.80197417]
[1729714705277,1.5382,2514.7,2514.4,9.77896417]
[1729714705480,1.5382,2514.7,2514.4,5.80194417]
[1729714706989,1.5382,2514.7,2514.5,5.80179417]
[1729714707289,1.5382,2514.7,2514.5,1.82495417]
[1729714708043,1.5382,2514.7,2514.5,5.80186417]
[1729714709779,1.5382,2514.7,2514.4,5.80194417]
[1729714710281,1.5382,2514.7,2514.5,5.80172417]
[1729714711444,1.5382,2514.7,2514.5,3.97677]
[1729714711849,13.35828585,2514.9,2514.4,1.13622342]
[1729714712071,0.1228045,2515.9,2515.8,8.51197]
[1729714712285,0.1228045,2515.9,2515.8,10.87692417]
[1729714712483,0.1228045,2515.9,2515.8,11.79347457]
[1729714712670,0.1228045,2515.9,2515.8,10.87692417]
[1729714713279,1.5308,2516.6,2516.0,3.97441]
[1729714713628,1.82495417,2516.4,2515.8,3.97487]
[1729714713793,3.05422283,2516.5,2515.9,3.97471]
[1729714713967,0.16913876,2516.3,2515.8,3.97487]
[1729714714164,1.5308,2516.5,2515.8,5.79982417]
[1729714714354,1.5308,2516.5,2515.8,3.97487]
[1729714714782,0.17076499,2516.4,2515.8,3.97487]
[1729714715089,0.17076499,2516.4,2515.9,3.97469]
[1729714715481,0.17076499,2516.4,2515.8,3.97475]
[1729714716355,0.17076499,2516.4,2515.9,3.97463]
[1729714716986,0.17076499,2516.4,2516.0,3.97455]
[1729714717172,0.17076499,2516.4,2515.8,3.97475]
[1729714717907,2.30192149,2516.4,2515.8,3.97475]
[1729714718289,2.30192149,2516.4,2516.0,3.97442]
[1729714719692,2.30192149,2516.4,2516.1,3.97439]
[1729714720500,2.30192149,2516.4,2516.0,3.97442]
[1729714721608,2.30192149,2516.4,2516.1,3.97438]
[1729714721903,2.30192149,2516.4,2516.0,7.94888]
[1729714722077,2.30192149,2516.4,2516.1,3.97439]
[1729714722797,2.30192149,2516.4,2516.0,3.97446]
[1729714723169,1.5605,2516.3,2515.8,3.97479]
[1729714723392,1.5605,2516.3,2515.8,7.94955]
[1729714723571,0.17056122,2516.2,2515.9,3.97464]
[1729714723973,0.17056122,2516.1,2515.9,3.97464]
[1729714724294,1.5605,2516.3,2515.9,3.97464]
[1729714724493,0.17056122,2516.0,2515.9,3.97464]
[1729714724691,1.5605,2516.3,2515.9,3.97464]
[1729714724913,0.17056122,2516.0,2515.9,3.97464]
[1729714725117,1.5605,2516.3,2515.8,3.97476]
[1729714725291,0.17056122,2516.0,2515.8,3.97476]
[1729714725492,1.5605,2516.3,2515.8,3.97476]
[1729714725827,1.5605,2516.3,2515.9,3.97471]
[1729714726188,1.5605,2516.3,2515.8,3.97476]
[1729714726421,1.5605,2516.3,2515.9,3.97465]
[1729714727322,1.5605,2516.3,2516.0,7.94897]
[1729714727534,1.5605,2516.3,2516.1,3.97437]
[1729714727831,1.5605,2516.3,2515.9,3.97462]
[1729714728131,1.5605,2516.3,2516.0,3.97455]
[1729714728428,1.5605,2516.3,2515.9,3.97464]
[1729714728728,1.5605,2516.3,2515.8,3.97487]
[1729714728889,1.5605,2516.3,2515.9,3.97458]
[1729714730125,0.76655965,2516.2,2515.9,7.9492]
[1729714730332,0.76655965,2516.2,2515.9,3.97462]
[1729714730632,1.5605,2516.3,2515.9,7.94924]
[1729714730799,1.5605,2516.3,2516.0,3.97452]
[1729714731005,1.5605,2516.3,2516.0,3.97456]
[1729714731923,0.17229251,2516.2,2515.7,3.97493]
[1729714732129,0.17229251,2516.2,2515.9,3.97471]
[1729714732537,0.7838009,2516.2,2515.8,3.97486]
[1729714732739,1.6646,2516.0,2515.6,3.97505]
[1729714732901,1.6646,2516.0,2515.4,3.97543]
[1729714733101,0.17212357,2515.9,2515.6,3.97519]
[1729714733301,2.71324093,2515.9,2515.4,3.97541]
[1729714733536,6.68797093,2515.9,2515.4,7.95082]
[1729714733838,1.5458,2515.8,2515.4,7.95084]
[1729714734207,0.17212357,2515.7,2515.4,7.95084]
[1729714734525,1.5458,2515.8,2515.4,7.95084]
[1729714734826,1.5458,2515.8,2515.5,3.97534]
[1729714735022,0.17212357,2515.7,2515.6,3.9751]
[1729714735226,1.5458,2515.8,2515.2,7.17462821]
[1729714735541,5.52146,2515.3,2515.2,0.11931231]
[1729714736039,3.97598,2515.2,2514.5,3.97683]
[1729714736258,3.9761,2515.1,2514.5,3.97683]
[1729714736534,0.17150393,2515.0,2514.7,3.97653]
[1729714736734,0.17150393,2515.0,2514.7,3.9766]
[1729714736936,21.1458,2515.3,2514.8,3.97633]
[1729714737142,0.17150393,2514.9,2514.7,7.95305]
[1729714737437,27.633615,2515.3,2514.8,3.97636]
[1729714739144,27.633615,2515.3,2514.7,3.97652]
[1729714740346,3.97583,2515.2,2514.7,3.97658]
[1729714740543,27.633595,2515.3,2514.8,3.97645]
[1729714740849,8.033595,2515.3,2514.8,3.97645]
[1729714741024,3.97587,2515.2,2514.7,3.97658]
[1729714741222,4.057925,2515.3,2514.7,3.97653]
[1729714741452,4.057925,2515.3,2514.8,3.97635]
[1729714741747,8.033685,2515.3,2514.7,3.97651]
[1729714741959,3.97585,2515.2,2514.6,0.11977249]
[1729714742257,1.2009535,2515.2,2514.6,0.11977249]
[1729714742555,1.2009535,2515.2,2514.4,3.97697]
[1729714742556,5.50548,2515.0,2514.4,3.97697]
[1729714742846,5.50548,2515.0,2514.5,3.97684]
[1729714743345,5.50548,2515.0,2514.5,3.9769]
[1729714743703,3.97638,2514.9,2514.3,3.97715]
[1729714743963,5.56908,2514.6,2514.0,7.95521]
[1729714744251,5.56908,2514.6,2514.1,4.09732631]
[1729714744542,5.56908,2514.6,2514.2,0.11979155]
[1729714744749,6.523643,2514.6,2514.2,0.11979155]
[1729714744915,6.523643,2514.6,2514.2,4.09718155]
[1729714745312,1.5923,2514.6,2514.3,3.97724]
[1729714745514,1.6448,2514.8,2514.5,3.97682]
[1729714745946,1.6448,2514.8,2514.3,5.52093]
[1729714746254,1.6448,2514.8,2514.4,3.97709]
[1729714746434,1.6448,2514.8,2514.3,6.45502148]
[1729714746753,1.6448,2514.8,2514.5,3.97691]
[1729714747043,0.17004668,2514.7,2514.5,3.97691]
[1729714747468,19.6,2514.9,2514.5,3.97691]
[1729714747469,0.17004668,2514.6,2514.5,3.97691]
[1729714748165,19.6,2514.9,2514.5,3.97691]
[1729714748365,0.17004668,2514.6,2514.5,3.97691]
[1729714748865,19.6,2514.9,2514.5,3.97691]
[1729714749070,0.17004668,2514.6,2514.5,3.97691]
[1729714749238,19.6,2514.9,2514.4,3.97707]
[1729714749448,19.6,2514.9,2514.6,3.97676]
[1729714749449,0.17004668,2514.8,2514.6,3.97676]
[1729714750173,2.20904335,2515.0,2514.6,3.97676]
[1729714750387,0.17004668,2514.7,2514.6,3.97676]
[1729714750970,6.18518335,2515.0,2514.6,3.97676]
[1729714751132,0.17004668,2514.7,2514.6,3.97676]
[1729714751846,1.5384,2515.0,2514.6,3.97676]
[1729714752168,0.17004668,2514.9,2514.6,3.97676]
[1729714753949,0.17004668,2514.9,2514.6,7.95346]
[1729714754146,0.17004668,2514.9,2514.6,3.9767]
[1729714754560,0.17004668,2514.9,2514.6,7.95337]
[1729714755439,0.17004668,2514.9,2514.7,3.9766]
[1729714755658,6.8039235,2515.2,2514.7,3.9766]
[1729714755864,0.17004668,2515.1,2514.7,3.9766]
[1729714757179,4.14603668,2515.1,2514.5,3.97681]
[1729714757375,7.2010327,2515.1,2514.6,3.97664]
[1729714758465,3.97614,2515.0,2514.6,3.97664]
[1729714758656,3.97555,2515.4,2514.9,3.97621]
[1729714758852,5.50245,2515.4,2514.9,7.95244]
[1729714759075,5.50245,2515.4,2514.9,3.97621]
[1729714759754,5.50242,2515.4,2514.9,3.97621]
[1729714761037,1.5269,2515.4,2515.0,3.97607]
[1729714761277,19.6,2515.5,2515.2,3.97582]
[1729714761977,0.16982921,2515.4,2515.2,3.97582]
[1729714762278,0.16982921,2515.4,2515.1,3.97584]
[1729714763041,0.16982921,2515.4,2515.2,3.97577]
[1729714763280,0.16982921,2515.4,2515.3,3.97566]
[1729714763457,3.97506,2515.7,2515.2,9.52824]
[1729714763655,0.16982921,2515.4,2515.3,3.97565]
[1729714763989,1.647,2515.8,2515.3,4.90973148]
[1729714764192,0.02,2516.3,2515.8,3.9748]
[1729714764193,19.6,2516.1,2515.8,3.9748]
[1729714764396,1.647,2516.2,2515.7,1.5768]
[1729714764684,9.59568,2516.2,2515.7,5.5518]
[1729714765055,5.62134,2516.2,2515.7,5.5518]
[1729714765263,5.62134,2516.2,2515.7,1.5768]
[1729714765471,5.62134,2516.2,2515.7,5.55182]
[1729714765978,5.62132,2516.2,2515.7,1.5768]
[1729714766285,3.97471,2516.0,2515.4,3.9755]
[1729714766491,5.5178,2515.8,2515.3,4.90974148]
[1729714766654,5.5178,2515.8,2515.3,3.97556]
[1729714767048,1.5429,2515.8,2515.3,3.97555]
[1729714767584,5.51778,2515.8,2515.3,3.97555]
[1729714767965,1.5429,2515.8,2515.3,3.97555]
[1729714768163,1.5429,2515.8,2515.4,3.9755]
[1729714769991,1.5429,2515.8,2515.3,4.5468757]
[1729714769992,3.97505,2515.7,2515.3,4.5468757]
[1729714770152,3.97505,2515.7,2515.3,3.97565]
[1729714770450,5.51778,2515.8,2515.2,3.97582]
[1729714770655,3.97511,2515.7,2515.2,3.97582]
[1729714771077,1.5429,2515.8,2515.3,3.97565]
[1729714771288,5.51779,2515.8,2515.3,3.97565]
[1729714771454,3.9751,2515.7,2515.2,3.9758]
[1729714771954,8.427039,2515.8,2515.3,3.97565]
[1729714772153,8.427039,2515.8,2514.9,3.97616]
[1729714772154,3.97505,2515.7,2514.9,3.97616]
[1729714772465,3.97528,2515.6,2515.1,3.9759]
[1729714772773,3.97505,2515.7,2515.1,3.97589]
[1729714772975,5.18778922,2515.7,2515.2,3.97582]
[1729714773288,9.16289922,2515.7,2515.2,3.97582]
[1729714773583,5.18778922,2515.7,2515.2,3.97582]
[1729714773784,9.16292922,2515.7,2515.2,3.97582]
[1729714773966,5.18778922,2515.7,2515.2,3.97582]
[1729714774386,3.97522,2515.6,2515.1,4.09569868]
[1729714775203,3.97522,2515.6,2515.2,3.97579]
[1729714775698,1.5924,2515.5,2515.1,4.09569868]
[1729714777006,0.17128663,2515.4,2515.1,4.09569868]
[1729714777587,0.17128663,2515.4,2515.2,3.97581]
[1729714777779,0.17128663,2515.4,2515.1,4.09569868]
[1729714778112,0.17128663,2515.4,2515.1,4.09564868]
[1729714778269,0.17128663,2515.4,2515.1,8.07155868]